bitfinex-derivatives/quotes_BTCF0:USTF0_20250320
["timestamp","ask_amount","ask_price","bid_price","bid_amount"]
[1742482655690,0.3151986,86175.0,86174.0,0.3328399]
[1742482656095,0.3151986,86175.0,86174.0,0.12084]
[1742482656391,0.3151986,86175.0,86166.0,0.85585542]
[1742482656392,0.1161094,86167.0,86166.0,0.85585542]
[1742482656598,0.1161094,86167.0,86166.0,1.13601542]
[1742482656793,0.3109094,86167.0,86166.0,1.13601542]
[1742482657299,0.3109094,86167.0,86166.0,1.25212612]
[1742482659091,0.3109094,86167.0,86166.0,0.97601542]
[1742482659896,0.13672267,86167.0,86166.0,0.97601542]
[1742482660604,0.25283207,86167.0,86166.0,1.09212612]
[1742482660805,0.25283207,86167.0,86166.0,0.97601542]
[1742482661101,0.25283207,86167.0,86166.0,0.97597542]
[1742482661996,0.1161296,86152.0,86151.0,0.00068]
[1742482662199,0.1161296,86152.0,86151.0,0.1208]
[1742482662703,0.0967,86152.0,86151.0,0.2369309]
[1742482662889,0.3175296,86152.0,86151.0,0.1208]
[1742482663196,0.1161309,86151.0,86150.0,0.27486367]
[1742482663600,0.3157309,86151.0,86150.0,0.27486367]
[1742482664411,0.116139,86145.0,86144.0,0.1208]
[1742482664601,0.1161404,86144.0,86143.0,0.00017407]
[1742482664800,0.3157404,86144.0,86143.0,0.00017407]
[1742482665912,0.3157404,86144.0,86143.0,0.09927407]
[1742482666111,0.3157404,86144.0,86137.0,0.27486367]
[1742482666112,0.4157404,86144.0,86137.0,0.27486367]
[1742482666313,0.1161539,86134.0,86128.0,0.0006]
[1742482666612,0.4759539,86134.0,86122.0,0.2198691]
[1742482666818,0.5078539,86134.0,86122.0,0.1037]
[1742482667016,0.5759539,86134.0,86122.0,0.1037]
[1742482667214,0.4749539,86134.0,86122.0,0.1037]
[1742482667509,0.4749539,86134.0,86125.0,0.00017407]
[1742482667711,0.1161606,86129.0,86128.0,0.1037]
[1742482668614,0.1161646,86126.0,86125.0,0.00017407]
[1742482668916,0.4769646,86126.0,86125.0,0.00017407]
[1742482669120,0.4769646,86126.0,86125.0,0.09337407]
[1742482669707,0.5746646,86126.0,86125.0,0.09337407]
[1742482669908,0.5746646,86126.0,86125.0,0.20954007]
[1742482670208,0.4585,86126.0,86125.0,0.20954007]
[1742482670518,0.5746646,86126.0,86125.0,0.20954007]
[1742482671219,0.4585,86126.0,86125.0,0.33034007]
[1742482671514,0.3608,86126.0,86125.0,0.58034007]
[1742482671718,4e-05,86128.0,86127.0,0.1161633]
[1742482671912,4e-05,86128.0,86127.0,0.3761633]
[1742482672109,4e-05,86128.0,86127.0,1.8761633]
[1742482672315,0.1181617,86129.0,86128.0,0.1161619]
[1742482672611,0.1161617,86129.0,86128.0,0.3070619]
[1742482673016,0.1161617,86129.0,86128.0,1.8070619]
[1742482673516,0.1171617,86129.0,86128.0,1.8070619]
[1742482674219,0.001,86129.0,86128.0,1.8070619]
[1742482674421,0.2147606,86129.0,86128.0,1.8070619]
[1742482674916,0.2147606,86129.0,86128.0,1.6909]
[1742482675123,0.2147606,86129.0,86128.0,0.2117619]
[1742482677517,0.2147606,86129.0,86128.0,0.3122619]
[1742482677719,0.00017407,86142.0,86141.0,0.1161444]
[1742482677925,0.00017407,86142.0,86141.0,0.7184444]
[1742482678126,0.00017407,86142.0,86141.0,2.0976444]
[1742482678326,0.00017407,86142.0,86141.0,2.2184444]
[1742482679427,0.00117407,86142.0,86141.0,2.2184444]
[1742482679719,1e-08,86143.0,86141.0,2.2184444]
[1742482679929,1e-08,86143.0,86142.0,0.1161431]
[1742482680119,1e-08,86143.0,86142.0,0.3861431]
[1742482680311,1e-08,86143.0,86142.0,0.5779431]
[1742482681021,0.11714171,86143.0,86142.0,1.9618]
[1742482681223,0.1161496,86138.0,86137.0,0.058074]
[1742482681422,0.1161496,86138.0,86137.0,0.1742194]
[1742482681621,0.1161496,86138.0,86136.0,0.0968]
[1742482681622,0.1161498,86137.0,86136.0,0.0968]
[1742482681829,0.1161512,86136.0,86135.0,0.96468]
[1742482682021,0.1161512,86136.0,86135.0,0.1208]
[1742482682222,0.6810512,86136.0,86135.0,0.1208]
[1742482682421,0.1742462,86127.0,86126.0,0.1208]
[1742482682728,0.1161646,86126.0,86125.0,0.09697407]
[1742482682924,0.3202646,86126.0,86125.0,0.00017407]
[1742482685020,0.4101475,86126.0,86113.0,0.11068496]
[1742482685222,0.0580912,86113.0,86102.0,0.0954]
[1742482685425,0.3608,86103.0,86099.0,4e-05]
[1742482685628,0.1161997,86100.0,86099.0,4e-05]
[1742482686029,0.4769997,86100.0,86099.0,4e-05]
[1742482686226,0.4739997,86100.0,86099.0,4e-05]
[1742482686535,0.1162011,86099.0,86098.0,0.00016]
[1742482686831,0.1162105,86092.0,86091.0,0.00017418]
[1742482687016,0.1162105,86092.0,86083.0,0.00873093]
[1742482687017,0.1162213,86084.0,86083.0,0.00873093]
[1742482687218,0.3608,86084.0,86083.0,0.00873093]
[1742482687525,0.3578,86084.0,86083.0,0.12495363]
[1742482687724,0.3578,86084.0,86083.0,0.32755363]
[1742482687936,0.3548,86084.0,86083.0,0.3188627]
[1742482688429,0.4710213,86084.0,86083.0,0.10064]
[1742482688629,0.4720213,86084.0,86083.0,4e-05]
[1742482688819,0.1162254,86081.0,86080.0,0.1162267]
[1742482689022,0.1162254,86081.0,86080.0,0.2169867]
[1742482689330,0.67176171,86084.0,86083.0,0.1162227]
[1742482689522,0.6705217,86084.0,86083.0,0.1162227]
[1742482689723,0.6675217,86084.0,86083.0,0.1162227]
[1742482690232,0.5513,86084.0,86083.0,0.1162227]
[1742482690435,0.5646213,86084.0,86083.0,0.1162227]
[1742482690624,0.5646213,86084.0,86083.0,0.3148227]
[1742482690939,0.001,86084.0,86083.0,1.8148227]
[1742482691329,0.1202213,86084.0,86083.0,1.6986]
[1742482691636,0.1222213,86084.0,86083.0,1.5995]
[1742482691934,0.1222213,86084.0,86083.0,1.7157227]
[1742482692131,0.005,86084.0,86083.0,1.8148227]
[1742482692320,0.005,86084.0,86083.0,2.0848227]
[1742482692526,0.00017418,86089.0,86088.0,0.1162159]
[1742482692727,0.00017418,86089.0,86088.0,0.4670159]
[1742482693129,0.00017418,86089.0,86088.0,1.9670159]
[1742482693734,0.00017418,86089.0,86088.0,1.9700159]
[1742482693935,4e-05,86098.0,86095.0,0.1743064]
[1742482693936,0.1162052,86096.0,86095.0,0.1743064]
[1742482694137,0.1162052,86096.0,86095.0,0.2370065]
[1742482694337,0.0581415,86098.0,86097.0,0.1162038]
[1742482694934,4e-05,86098.0,86097.0,0.1162038]
[1742482695239,0.13979432,86103.0,86102.0,0.116197]
[1742482695535,0.00021418,86106.0,86105.0,0.116193]
[1742482695733,0.00017418,86106.0,86105.0,0.746993]
[1742482695925,0.0991,86115.0,86114.0,0.1161808]
[1742482696132,0.0991,86115.0,86114.0,0.2369808]
[1742482696343,0.2152795,86115.0,86114.0,0.2369808]
[1742482696527,4e-05,86116.0,86115.0,0.1161795]
[1742482696840,0.0976,86121.0,86120.0,0.1161727]
[1742482697133,0.00017362,86124.0,86122.0,0.11617]
[1742482697433,0.00017362,86124.0,86122.0,0.23697]
[1742482697634,0.25480302,86123.0,86122.0,0.23697]
[1742482697839,0.44880302,86123.0,86122.0,0.23697]
[1742482698039,0.33263432,86123.0,86122.0,0.24894028]
[1742482698237,0.33263432,86123.0,86122.0,0.26334582]
[1742482698739,0.33463432,86123.0,86122.0,0.26334582]
[1742482699038,0.33463432,86123.0,86107.0,0.0580949]
[1742482699226,0.1161822,86113.0,86097.0,0.4569]
[1742482699428,0.1161822,86113.0,86106.0,0.1161904]
[1742482699826,0.1161822,86113.0,86110.0,4e-05]
[1742482700031,0.3168822,86113.0,86110.0,4e-05]
[1742482700646,0.3168822,86113.0,86112.0,0.11635768]
[1742482700938,0.3168822,86113.0,86112.0,0.00017418]
[1742482702636,0.3178822,86113.0,86112.0,0.00017418]
[1742482703345,0.3198822,86113.0,86112.0,0.00017418]
[1742482703541,0.2037,86113.0,86112.0,0.11635768]
[1742482703846,0.3198822,86113.0,86112.0,0.11635768]
[1742482704042,0.2037,86113.0,86112.0,0.11635768]
[1742482704345,0.003,86113.0,86112.0,0.11635768]
[1742482704543,0.003,86113.0,86112.0,0.21215768]
[1742482705044,0.002,86113.0,86112.0,0.21215768]
[1742482705746,0.001,86113.0,86112.0,0.21215768]
[1742482706433,0.001,86113.0,86112.0,0.00017418]
[1742482706434,0.1171822,86113.0,86112.0,0.00017418]
[1742482706835,0.2196822,86113.0,86112.0,0.00017418]
[1742482708051,0.2216822,86113.0,86112.0,0.00017418]
[1742482708947,0.3188822,86113.0,86112.0,0.00017418]
[1742482709548,0.3188822,86113.0,86024.0,0.07746582]
[1742482709549,0.8135,86113.0,86071.0,0.4189191]
[1742482709745,0.3608,86086.0,86085.0,0.11622]
[1742482710352,0.1913,86093.0,86092.0,0.1162105]
[1742482710549,0.3075092,86093.0,86092.0,0.1162105]
[1742482710746,0.00017418,86094.0,86093.0,0.1162092]
[1742482710945,0.00017418,86094.0,86093.0,0.2369692]
[1742482711439,0.00017418,86094.0,86093.0,0.5606692]
[1742482711746,0.00017418,86094.0,86093.0,0.9214692]
[1742482712250,4e-05,86098.0,86097.0,0.1162038]
[1742482712439,0.36084,86103.0,86102.0,0.116197]
[1742482712645,0.36084,86103.0,86102.0,1.986957]
[1742482712841,0.3608,86112.0,86102.0,1.986957]
[1742482712842,0.17330701,86113.0,86107.0,0.1161903]
[1742482713048,4e-05,86114.0,86113.0,0.1742733]
[1742482713245,4e-05,86114.0,86113.0,0.5450333]
[1742482713641,0.20755861,86118.0,86117.0,0.1161768]
[1742482714245,0.20755861,86118.0,86117.0,0.2116768]
[1742482714847,4e-05,86122.0,86121.0,0.1161714]
[1742482715150,4e-05,86122.0,86121.0,0.5069314]
[1742482715350,0.11621,86122.0,86121.0,0.24847954]
[1742482716255,0.11621,86122.0,86121.0,0.12076]
[1742482716749,0.1161768,86117.0,86113.0,0.84356]
[1742482716955,0.1161916,86106.0,86102.0,0.00064]
[1742482717142,0.4769916,86106.0,86101.0,0.12076]
[1742482717337,0.1949,86107.0,86106.0,0.1161916]
[1742482717554,0.3110903,86107.0,86106.0,0.1161916]
[1742482717755,0.3110903,86107.0,86106.0,0.2106916]
[1742482717954,0.3110903,86107.0,86106.0,0.1161916]
[1742482718540,0.3110903,86107.0,86106.0,0.2106916]
[1742482718744,0.1949,86107.0,86106.0,0.2106916]
[1742482718946,0.1161813,86114.0,86113.0,0.1161822]
[1742482719151,0.1161835,86112.0,86111.0,0.0580917]
[1742482719354,0.1161835,86112.0,86111.0,0.06949971]
[1742482719550,0.1161835,86112.0,86111.0,0.0580917]
[1742482720048,0.1161835,86112.0,86109.0,0.2369459]
[1742482720049,0.1161862,86110.0,86109.0,0.2369459]
[1742482720746,0.2134862,86110.0,86109.0,0.3376459]
[1742482720951,0.2134862,86110.0,86109.0,0.12076]
[1742482721152,0.2134862,86110.0,86109.0,0.13251367]
[1742482721462,0.2154862,86110.0,86109.0,0.12076]
[1742482721759,0.2174862,86110.0,86109.0,0.2369476]
[1742482721957,0.1013,86110.0,86105.0,0.00021418]
[1742482722161,0.1161916,86106.0,86105.0,0.00021418]
[1742482722762,0.3092916,86106.0,86105.0,0.00017418]
[1742482724261,0.3102916,86106.0,86105.0,0.11636718]
[1742482724746,0.3102916,86106.0,86105.0,0.00017418]
[1742482724946,0.3112916,86106.0,86105.0,0.11636718]
[1742482725549,0.1951,86106.0,86105.0,0.11636718]
[1742482725753,0.002,86106.0,86105.0,0.50708718]
[1742482726148,0.1025,86115.0,86114.0,0.1161808]
[1742482726354,8e-05,86117.0,86116.0,0.1161781]
[1742482726759,0.32373401,86118.0,86117.0,0.1161768]
[1742482726959,0.20755861,86118.0,86117.0,0.1161768]
[1742482727148,0.20755861,86118.0,86117.0,0.2176768]
[1742482727354,0.32373401,86118.0,86117.0,0.2176768]
[1742482727854,0.42003401,86118.0,86117.0,0.2176768]
[1742482728049,0.33173401,86118.0,86117.0,0.2176768]
[1742482728260,0.21719861,86118.0,86117.0,0.2176768]
[1742482728459,0.21719861,86118.0,86117.0,0.3131768]
[1742482729062,0.00964,86118.0,86117.0,0.3131768]
[1742482730266,0.00964,86118.0,86117.0,0.6031768]
[1742482730469,0.0963,86129.0,86128.0,0.1161619]
[1742482730655,0.2125006,86129.0,86128.0,0.2368819]
[1742482730858,0.3126006,86129.0,86128.0,0.3375819]
[1742482731366,4e-05,86129.0,86128.0,0.3375819]
[1742482731559,4e-05,86129.0,86128.0,0.4394819]
[1742482731762,0.004,86129.0,86128.0,0.4394819]
[1742482732269,0.1231606,86129.0,86128.0,0.21134071]
[1742482732455,0.1231606,86129.0,86128.0,0.23136071]
[1742482732661,0.3266606,86129.0,86128.0,0.34752261]
[1742482733073,0.3266606,86129.0,86128.0,0.45242261]
[1742482733373,0.3266606,86129.0,86128.0,0.4639857]
[1742482733573,0.2035,86129.0,86128.0,0.4639857]
[1742482734262,0.3196606,86129.0,86128.0,0.4639857]
[1742482734458,4e-05,86135.0,86128.0,0.4639857]
[1742482734459,4e-05,86135.0,86134.0,0.1161539]
[1742482734664,4e-05,86135.0,86134.0,0.3661539]
[1742482734865,0.20755861,86141.0,86140.0,0.1161458]
[1742482735064,0.20755861,86141.0,86140.0,0.2368658]
[1742482735475,0.20755861,86141.0,86140.0,0.4968658]
[1742482735788,4e-05,86145.0,86144.0,0.1161404]
[1742482735973,4e-05,86145.0,86144.0,0.3861404]
[1742482736367,4e-05,86145.0,86144.0,0.5951404]
[1742482736659,4e-05,86145.0,86144.0,0.3251404]
[1742482738675,0.116179,86145.0,86144.0,0.3251404]
[1742482738876,0.116179,86145.0,86144.0,0.4458204]
[1742482739177,4e-05,86145.0,86144.0,0.4458204]
[1742482739578,4e-05,86145.0,86144.0,0.7058204]
[1742482740263,4e-05,86145.0,86144.0,0.4458204]
[1742482740477,4e-05,86145.0,86144.0,0.6758204]
[1742482741569,4e-05,86145.0,86144.0,0.5720204]
[1742482741770,4e-05,86145.0,86144.0,0.6691204]
[1742482742172,0.116179,86145.0,86144.0,0.3352]
[1742482742375,0.116179,86145.0,86144.0,0.3419804]
[1742482742673,0.323979,86145.0,86144.0,0.2367804]
[1742482743678,0.684779,86145.0,86144.0,0.12064]
[1742482743879,0.1161417,86143.0,86142.0,0.1053]
[1742482744086,0.1161417,86143.0,86142.0,0.3420831]
[1742482744383,0.3239417,86143.0,86142.0,0.2367831]
[1742482744572,0.3239417,86143.0,86142.0,0.12064]
[1742482745370,0.1161485,86138.0,86134.0,0.3608]
[1742482745680,0.0580764,86135.0,86134.0,0.1161539]
[1742482745878,0.198,86137.0,86136.0,0.1161512]
[1742482746075,0.0991,86137.0,86136.0,0.1161512]
[1742482746276,0.0991,86137.0,86136.0,0.2134512]
[1742482746277,0.2152498,86137.0,86136.0,0.2134512]
[1742482746478,0.1161552,86133.0,86132.0,0.12064]
[1742482746777,0.1161633,86127.0,86122.0,0.3608]
[1742482746981,0.1161633,86127.0,86125.0,0.12064]
[1742482747479,0.2152633,86127.0,86125.0,0.12064]
[1742482748280,0.0991,86127.0,86126.0,0.11633878]
[1742482748484,0.0952,86147.0,86138.0,0.1161485]
[1742482748671,0.0580702,86144.0,86138.0,0.1161485]
[1742482748871,0.0580709,86143.0,86138.0,0.2149485]
[1742482749184,0.4769471,86139.0,86138.0,0.2149485]
[1742482749583,0.5742471,86139.0,86138.0,0.3188485]
[1742482751678,4e-05,86144.0,86143.0,0.1161417]
[1742482752188,4e-05,86144.0,86143.0,0.3252417]
[1742482752376,0.1161804,86144.0,86143.0,0.3252417]
[1742482752777,0.2209404,86144.0,86143.0,0.3252417]
[1742482753576,0.2209404,86144.0,86143.0,0.2203417]
[1742482754088,0.2209404,86144.0,86121.0,0.3608]
[1742482754089,0.1161471,86139.0,86121.0,0.3608]
[1742482754284,0.2209485,86138.0,86137.0,0.12064]
[1742482754684,0.1048,86138.0,86137.0,0.3357898]
[1742482754988,0.1161777,86146.0,86145.0,0.116139]
[1742482755187,4e-05,86146.0,86145.0,0.116139]
[1742482755391,4e-05,86146.0,86145.0,0.340539]
[1742482755683,0.1161777,86146.0,86145.0,0.600539]
[1742482755878,0.1161377,86146.0,86145.0,0.600539]
[1742482756079,0.1161377,86146.0,86145.0,0.3806]
[1742482756280,0.1161377,86146.0,86145.0,0.1206]
[1742482756890,0.1161377,86146.0,86137.0,0.22705675]
[1742482756891,0.1161485,86138.0,86137.0,0.22705675]
[1742482757381,0.2182485,86138.0,86137.0,0.22705675]
[1742482757580,0.2182485,86138.0,86137.0,0.32345675]
[1742482757796,4e-05,86148.0,86146.0,0.1161377]
[1742482758082,0.1161763,86147.0,86146.0,0.4351377]
[1742482758388,0.2163763,86147.0,86146.0,0.4351377]
[1742482758784,0.2163363,86147.0,86146.0,0.4351377]
[1742482758982,0.2163363,86147.0,86145.0,0.0580695]
[1742482758983,0.1161444,86141.0,86140.0,0.1014]
[1742482759178,0.1161444,86141.0,86140.0,0.1206]
[1742482759383,0.1161444,86141.0,86140.0,0.2367458]
[1742482759689,0.2163444,86141.0,86140.0,0.2367458]
[1742482760088,0.1161552,86133.0,86124.0,0.20702224]
[1742482760281,0.1582723,86141.0,86131.0,0.1161579]
[1742482760282,0.1002,86132.0,86131.0,0.1161579]
[1742482760485,0.3608,86142.0,86141.0,0.1161444]
[1742482760486,0.4769443,86142.0,86141.0,0.1161444]
[1742482760980,0.1161444,86141.0,86140.0,0.2194452]
[1742482761184,0.3608,86142.0,86141.0,0.1161444]
[1742482761484,0.3608,86142.0,86127.0,0.001]
[1742482761485,0.1161619,86128.0,86127.0,0.001]
[1742482761678,0.1161619,86128.0,86116.0,0.34781079]
[1742482761679,0.11617,86122.0,86116.0,0.34721079]
[1742482761879,0.0012,86123.0,86116.0,0.34721079]
[1742482761880,0.1161768,86117.0,86116.0,0.34721079]
[1742482762085,0.4769768,86117.0,86116.0,0.34721079]
[1742482762280,0.48876801,86117.0,86116.0,0.34721079]
[1742482762585,0.3608,86117.0,86116.0,0.46338889]
[1742482762886,0.1742645,86120.0,86119.0,0.1742551]
[1742482763988,0.0580877,86120.0,86119.0,0.1742551]
[1742482764290,0.0580877,86120.0,86119.0,0.0580859]
[1742482764691,0.0590877,86120.0,86119.0,0.0580859]
[1742482764882,0.0600877,86120.0,86119.0,0.0580859]
[1742482765078,0.0600877,86120.0,86119.0,0.1786459]
[1742482765894,0.002,86120.0,86119.0,0.1786459]
[1742482766484,0.17363039,86127.0,86124.0,0.1161673]
[1742482766680,0.17363039,86127.0,86126.0,0.1161646]
[1742482766987,0.17363039,86127.0,86126.0,2.0167646]
[1742482767188,1e-08,86127.0,86126.0,2.3775646]
[1742482767576,4e-05,86140.0,86126.0,2.2614]
[1742482767888,0.1161633,86128.0,86127.0,0.2367623]
[1742482768190,0.1161604,86130.0,86129.0,0.1161592]
[1742482768391,0.3095604,86130.0,86129.0,0.1161592]
[1742482769179,0.1934,86130.0,86129.0,0.1161592]
[1742482769376,0.3095592,86130.0,86129.0,0.1161592]
[1742482769791,0.1161633,86127.0,86126.0,0.1221646]
[1742482769991,0.1151633,86127.0,86126.0,0.1191646]
[1742482770691,0.3095618,86130.0,86129.0,0.1171606]
[1742482770890,0.3095618,86130.0,86129.0,0.2377206]
[1742482771189,0.3095618,86130.0,86129.0,0.2367206]
[1742482772988,0.3105618,86130.0,86129.0,0.2367206]
[1742482773382,0.001,86130.0,86129.0,0.2367206]
[1742482774583,0.001,86130.0,86129.0,0.5975206]
[1742482774886,0.001,86130.0,86129.0,0.6978206]
[1742482779398,4e-05,86153.0,86137.0,0.1161498]
[1742482779598,4e-05,86153.0,86147.0,0.1161363]
[1742482779802,0.3176249,86156.0,86155.0,0.1161255]
[1742482780099,0.3176249,86156.0,86147.0,0.22316]
[1742482780100,0.1741945,86154.0,86153.0,0.2366855]
[1742482780283,0.1741945,86154.0,86153.0,0.3392855]
[1742482780602,0.1741945,86154.0,86153.0,0.22316]
[1742482780795,0.1741945,86154.0,86153.0,0.3392882]
[1742482781100,0.3756945,86154.0,86153.0,0.3392882]
[1742482781291,0.2015,86154.0,86153.0,0.34808882]
[1742482781594,0.3176269,86154.0,86153.0,0.34808882]
[1742482782297,0.2015,86154.0,86153.0,0.34808882]
[1742482782801,0.0984,86154.0,86153.0,0.34808882]
[1742482782998,0.1941,86154.0,86153.0,0.34808882]
[1742482783302,0.3102269,86154.0,86153.0,0.34808882]
[1742482783896,0.3102269,86154.0,86153.0,0.00880062]
[1742482784194,0.1161363,86147.0,86146.0,0.12052]
[1742482784393,0.0580688,86146.0,86145.0,0.116139]
[1742482784603,0.1518688,86146.0,86145.0,0.215939]
[1742482784805,0.0938,86146.0,86145.0,0.215939]
[1742482785000,0.0938,86146.0,86145.0,0.33676499]
[1742482785306,0.1741917,86155.0,86154.0,0.1741869]
[1742482785790,0.1741917,86155.0,86154.0,0.0580627]
[1742482785995,0.1741917,86155.0,86154.0,0.2592627]
[1742482786303,0.36084,86157.0,86156.0,0.1161242]
[1742482786703,0.36084,86157.0,86156.0,0.3173242]
[1742482786704,0.3608,86157.0,86156.0,0.3173242]
[1742482786904,0.1902,86160.0,86159.0,0.1161201]
[1742482787104,4e-05,86160.0,86159.0,0.2366401]
[1742482787405,4e-05,86160.0,86159.0,0.4378401]
[1742482787794,0.25492627,86161.0,86160.0,0.1161188]
[1742482787994,0.13880777,86161.0,86160.0,0.1161188]
[1742482788195,0.23560777,86161.0,86160.0,0.3198188]
[1742482788997,0.23560777,86161.0,86160.0,0.33141868]
[1742482788998,0.0968,86161.0,86160.0,0.33141868]
[1742482789201,4e-05,86164.0,86163.0,0.1161148]
[1742482789403,4e-05,86164.0,86163.0,0.3761148]
[1742482789595,4e-05,86171.0,86170.0,0.1161053]
[1742482789797,0.0968,86175.0,86174.0,0.1160999]
[1742482790104,0.096,86179.0,86178.0,0.1160945]
[1742482790406,0.096,86179.0,86178.0,0.2366145]
[1742482791607,0.1992,86179.0,86178.0,0.3388145]
[1742482792007,0.26617392,86184.0,86179.0,0.1160932]
[1742482792201,4e-05,86182.0,86179.0,0.2182932]
[1742482792510,4e-05,86182.0,86179.0,0.22993856]
[1742482792706,0.1032,86183.0,86179.0,0.22993856]
[1742482792897,0.1032,86183.0,86182.0,0.1160892]
[1742482793098,4e-05,86184.0,86183.0,0.1160878]
[1742482793301,4e-05,86184.0,86183.0,0.2365678]
[1742482793506,0.20174,86184.0,86183.0,0.2365678]
[1742482795108,4e-05,86184.0,86183.0,0.5973678]
[1742482795312,0.13852862,86189.0,86188.0,0.1160811]
[1742482795497,0.09150971,86189.0,86188.0,0.1160811]
[1742482795807,0.0508763,86189.0,86188.0,0.1160811]
[1742482796011,0.1035,86197.0,86196.0,0.1160703]
[1742482796201,0.1035,86197.0,86196.0,0.5065503]
[1742482796394,0.1035,86197.0,86196.0,0.2365503]
[1742482797009,0.219569,86197.0,86196.0,0.2365503]
[1742482797413,0.1035,86197.0,86196.0,0.2365503]
[1742482797905,0.1035,86197.0,86196.0,0.3363503]
[1742482798612,0.1035,86197.0,86196.0,0.34803658]
[1742482799412,0.219569,86197.0,86196.0,0.13216628]
[1742482799713,0.219569,86197.0,86196.0,0.24823658]
[1742482799714,0.1035,86197.0,86196.0,0.24823658]
[1742482800008,0.1035,86197.0,86196.0,0.25709436]
[1742482800312,0.2037,86197.0,86196.0,0.25709436]
[1742482801108,0.10004,86200.0,86196.0,0.25709436]
[1742482801109,0.10004,86200.0,86199.0,0.1160663]
[1742482801514,0.20274,86200.0,86199.0,0.1160663]
[1742482801708,0.1,86200.0,86199.0,0.1160663]
[1742482802113,0.10004,86200.0,86199.0,0.3228663]
[1742482802611,0.116069,86197.0,86196.0,0.12929778]
[1742482802809,0.3036,86199.0,86198.0,0.1160676]
[1742482803000,0.1001,86199.0,86198.0,0.1160676]
[1742482803206,0.10004,86200.0,86199.0,0.1160663]
[1742482803402,0.10004,86200.0,86199.0,0.3162663]
[1742482803614,0.1001,86205.0,86204.0,0.1160595]
[1742482803809,0.116044,86216.0,86215.0,0.1160447]
[1742482804017,0.310844,86216.0,86215.0,0.2364447]
[1742482804509,0.310844,86216.0,86215.0,0.1204]
[1742482804708,0.310844,86216.0,86207.0,0.11622937]
[1742482804709,0.1160541,86208.0,86207.0,0.11622937]
[1742482804925,0.1160541,86208.0,86207.0,0.23662937]
[1742482805213,0.1160541,86208.0,86207.0,0.01154951]
[1742482805413,0.1160541,86208.0,86207.0,0.12057407]
[1742482805616,0.3108541,86208.0,86207.0,0.23662957]
[1742482806815,0.1948,86208.0,86207.0,0.2480796]
[1742482807013,0.3108541,86208.0,86207.0,0.2480796]
[1742482807513,0.3108541,86208.0,86207.0,0.1320241]
[1742482807705,0.3108541,86208.0,86207.0,0.2480796]
[1742482807706,0.1948,86208.0,86207.0,0.2480796]
[1742482807905,0.0975,86219.0,86207.0,0.2480796]
[1742482807906,0.1160299,86226.0,86220.0,0.116038]
[1742482808113,0.1160295,86227.0,86220.0,0.516438]
[1742482808314,0.0945,86225.0,86220.0,0.516438]
[1742482808519,0.2105321,86225.0,86224.0,0.1160326]
[1742482808821,0.0945,86225.0,86224.0,0.1160326]
[1742482809205,0.1033,86230.0,86229.0,0.1160259]
[1742482809410,0.1033,86230.0,86229.0,0.24821976]
[1742482809617,0.2193245,86230.0,86229.0,0.24821976]
[1742482810114,0.1033,86230.0,86229.0,0.24821976]
[1742482810339,0.2193245,86230.0,86229.0,0.24821976]
[1742482811611,0.1033,86230.0,86229.0,0.24821976]
[1742482811819,0.2193245,86230.0,86229.0,0.24821976]
[1742482812320,0.4641,86230.0,86221.0,0.3608]
[1742482812508,0.3608,86223.0,86222.0,0.12036]
[1742482812706,0.5348512,86223.0,86222.0,0.2363953]
[1742482813113,0.3608,86223.0,86222.0,0.24824279]
[1742482813323,0.0965,86229.0,86228.0,0.1160272]
[1742482813614,4e-05,86232.0,86231.0,0.1160232]
[1742482813615,0.1160618,86232.0,86231.0,0.1160232]
[1742482813816,0.1160218,86232.0,86231.0,0.2363832]
[1742482814018,0.2125218,86232.0,86231.0,0.2363832]
[1742482814222,0.2125218,86232.0,86231.0,0.12787884]
[1742482814518,0.2125218,86232.0,86231.0,0.24823884]
[1742482815018,0.0965,86232.0,86231.0,0.24823884]
[1742482815317,0.2125218,86232.0,86231.0,0.24823884]
[1742482816314,0.2125218,86232.0,86231.0,0.13221564]
[1742482816515,0.2125218,86232.0,86220.0,0.0977]
[1742482816516,0.1160366,86222.0,86220.0,0.0977]
[1742482816714,0.116038,86220.0,86217.0,0.12036]
[1742482816917,0.0965,86219.0,86218.0,0.1160407]
[1742482817220,0.1160434,86216.0,86215.0,0.12036]
[1742482817416,0.1160434,86216.0,86191.0,0.4188379]
[1742482817417,0.1160541,86208.0,86191.0,0.4188379]
[1742482817718,0.1160757,86192.0,86191.0,0.12036]
[1742482817920,0.058036,86196.0,86193.0,0.1160716]
[1742482818111,0.0965,86195.0,86194.0,0.116073]
[1742482818421,0.3608,86197.0,86196.0,0.1160703]
[1742482819124,0.3608,86197.0,86196.0,0.2105703]
[1742482819314,0.3608,86197.0,86196.0,0.3308903]
[1742482819516,0.48849436,86197.0,86196.0,0.12032]
[1742482819716,0.37242536,86197.0,86196.0,0.2363903]
[1742482819911,0.3608,86197.0,86196.0,0.5163903]
[1742482820112,4e-05,86201.0,86200.0,0.1160649]
[1742482820415,0.0963,86202.0,86201.0,0.1160636]
[1742482820813,0.0963,86202.0,86196.0,0.12032]
[1742482821017,0.0963,86202.0,86191.0,0.0085198]
[1742482821018,0.1160757,86192.0,86191.0,0.0085198]
[1742482821317,0.0580331,86199.0,86198.0,0.1160652]
[1742482821525,0.4597,86201.0,86189.0,0.0953]
[1742482821822,0.1160797,86189.0,86188.0,0.01184826]
[1742482822024,0.1160797,86189.0,86188.0,0.00867811]
[1742482822526,0.0580362,86195.0,86188.0,0.00867811]
[1742482822527,0.3608,86209.0,86200.0,0.1160649]
[1742482822717,0.3608,86217.0,86201.0,0.0580311]
[1742482823024,0.3608,86217.0,86204.0,0.1160595]
[1742482823025,0.1740682,86215.0,86204.0,0.1160595]
[1742482823223,0.3608,86217.0,86204.0,0.39765108]
[1742482823621,0.1160428,86218.0,86217.0,0.1160407]
[1742482824309,0.1160428,86218.0,86217.0,0.12745397]
[1742482824712,0.1160428,86218.0,86217.0,0.01141327]
[1742482824912,0.1160434,86216.0,86215.0,0.12036]
[1742482825113,0.1160501,86212.0,86211.0,0.1160495]
[1742482825817,0.1160501,86212.0,86211.0,0.2127495]
[1742482826325,0.1160501,86212.0,86211.0,0.22433292]
[1742482826619,0.4188199,86219.0,86216.0,0.058021]
[1742482826808,0.1160447,86215.0,86212.0,0.058024]
[1742482827014,0.1160474,86213.0,86211.0,0.01158342]
[1742482827216,0.1160474,86213.0,86211.0,0.1160493]
[1742482827217,0.1160488,86212.0,86211.0,0.1160493]
[1742482827412,0.1160501,86211.0,86210.0,0.12036]
[1742482827618,0.1160501,86211.0,86210.0,0.3293115]
[1742482827918,0.0580203,86218.0,86215.0,0.1160426]
[1742482828124,0.11604,86219.0,86218.0,0.1160407]